{"text_format":"1","workbook":"xlsx","n_sheets":4,"sheets":["Severity Matrix","2026","NFPA70B Intervals","Sheet1"],"not_rendered":{"charts":1,"images":16,"macros":1,"external_links":0,"defined_names":62,"comments":1,"pivot_tables":0},"unopened":[],"bounds":{"document_bytes":16777216,"sheet_cells":100000,"rows_first":2000,"rows_last":500,"rows_between":2000,"halvings":0,"cell_chars":16384,"cell_head_chars":4096},"cells_cut":0,"cells_raw":0,"read":"whole","date_system":"1900"}

{"sheet":"Severity Matrix","index":0,"n_rows":14,"n_cols":13,"rows_kept":14,"cut":false,"hidden":false,"merged":[[46,3,46,6],[0,2,0,13],[1,0,1,15]]}
[]
["Asset Inventory List - Severity Matrix"]
[]
[null,null,null,1,2,3,4,5,6,7,8,9,10]
[null,null,10,{"$f":"D$4*$C5","v":10},{"$f":"E$4*$C5","v":20},30,40,50,60,70,80,90,100]
[null,null,9,{"$f":"D$4*$C6","v":9},{"$f":"E$4*$C6","v":18},27,36,45,54,63,72,81,90]
[null,null,8,8,16,24,32,40,48,56,64,72,80]
[null,null,7,7,14,21,28,35,42,49,56,63,70]
[null,null,6,6,12,18,24,30,36,42,48,54,60]
[null,null,5,5,10,15,20,25,30,35,40,45,50]
[null,null,4,4,8,12,16,20,24,28,32,36,40]
[null,null,3,3,6,9,12,15,18,21,24,27,30]
[null,null,2,2,4,6,8,10,12,14,16,18,20]
[null,null,1,1,2,3,4,5,6,7,8,9,10]

{"sheet":"2026","index":1,"n_rows":1032,"n_cols":15,"rows_kept":1032,"cut":false,"hidden":false,"merged":[[1,2,1,4],[4,2,4,4],[12,2,12,14],[11,2,11,13],[10,2,10,5],[5,2,5,4],[6,2,6,4],[7,2,7,4],[8,2,8,4],[2,2,2,4],[3,2,3,4],[9,2,9,4],[1,7,1,14]]}
[]
[null,null,"Site Name:",null,null,null,null,"Severity Scale:"]
[null,null,"Site Location:"]
[null,null,"Company Name:"]
[null,null,"Contact Person:"]
[null,null,"Phone:"]
[null,null,"Email:"]
[null,null,"Inspection Date:"]
[null,null,"Thermographer:"]
[null,null,"Certification No. "]
[null,null,"Technician Notes: "]
[]
[null,"Equipment Inspected","IR Scan & Electrical Inspection 2026"]
[null,"IR Photo #","Asset Tag No.","Building","Room / Location","Equipment Label","Equipment","Make","Model","Equipment Rating (V, A)","IR Photo","Comments","Severity","Criticality","Suggested\nRepair Timeline"]
[]
[]
[]
[]
[]
[]
[]
[]
[]
[]
[]
[]
[]
[]
[]
[]
[]
[]
[]
[]
[]
[]
[]
[]
[]
[]
[]
[]
[]
[]
[]
[]
[]
[]
[]
[]
[29]
[30]
[]
[]
[]
[]
[]
[]
[]
[]
[]
[31]
[32]
[33]
[34]
[35]
[36]
[37]
[38]
[39]
[]
[]
[]
[41]
[]
[]
[]
[]
[]
[42]
[43]
[]
[44]
[45]
[46]
[47]
[]
[]
[]
[]
[]
[48]
[49]
[]
[]
[]
[]
[]
[50]
[51]
[]
[]
[52]
[53]
[54]
[55]
[56]
[57]
[59]
[60]
[62]
[63]
[]
[64]
[65]
[66]
[67]
[68]
[69]
[71]
[]
[72]
[73]
[75]
[]
[76]
[]
[78]
[]
[]
[]
[79]
[]
[]
[]
[81]
[82]
[83]
[]
[]
[84]
[]
[85]
[86]
[87]
[88]
[89]
[90]
[92]
[93]
[96]
[97]
[98]
[100]
[101]
[102]
[103]
[]
[]
[104]
[105]
[108]
[109]
[110]
[111]
[112]
[113]
[114]
[115]
[]
[116]
[117]
[118]
[119]
[120]
[121]
[122]
[123]
[124]
[125]
[]
[127]
[128]
[129]
[130]
[131]
[132]
[133]
[134]
[135]
[136]
[137]
[138]
[139]
[140]
[141]
[142]
[143]
[144]
[145]
[146]
[147]
[148]
[149]
[150]
[151]
[152]
[153]
[154]
[155]
[156]
[157]
[158]
[159]
[160]
[161]
[162]
[163]
[164]
[165]
[166]
[167]
[168]
[169]
[170]
[171]
[172]
[173]
[174]
[175]
[176]
[177]
[178]
[179]
[180]
[181]
[182]
[183]
[184]
[185]
[186]
[187]
[188]
[189]
[190]
[191]
[192]
[193]
[194]
[195]
[196]
[197]
[198]
[199]
[200]
[201]
[202]
[203]
[]
[]
[204]
[205]
[206]
[207]
[208]
[209]
[210]
[211]
[212]
[213]
[214]
[215]
[216]
[217]
[218]
[219]
[220]
[221]
[222]
[223]
[224]
[225]
[226]
[227]
[228]
[229]
[230]
[231]
[232]
[233]
[234]
[235]
[236]
[237]
[238]
[239]
[240]
[241]
[242]
[243]
[244]
[245]
[246]
[247]
[248]
[249]
[250]
[251]
[252]
[253]
[254]
[255]
[256]
[257]
[258]
[259]
[260]
[261]
[262]
[263]
[264]
[265]
[266]
[267]
[268]
[269]
[270]
[271]
[272]
[273]
[274]
[275]
[276]
[277]
[278]
[279]
[280]
[281]
[282]
[283]
[284]
[285]
[286]
[287]
[288]
[289]
[290]
[291]
[292]
[293]
[294]
[295]
[296]
[297]
[298]
[299]
[300]
[301]
[302]
[303]
[304]
[305]
[306]
[307]
[308]
[309]
[310]
[311]
[312]
[313]
[314]
[315]
[316]
[317]
[318]
[319]
[320]
[321]
[322]
[323]
[324]
[325]
[326]
[327]
[328]
[329]
[330]
[331]
[332]
[333]
[334]
[335]
[336]
[337]
[338]
[339]
[340]
[341]
[342]
[343]
[344]
[345]
[346]
[347]
[348]
[349]
[350]
[351]
[352]
[353]
[354]
[355]
[356]
[357]
[358]
[359]
[360]
[361]
[362]
[363]
[364]
[365]
[366]
[367]
[368]
[369]
[370]
[371]
[372]
[373]
[374]
[375]
[376]
[377]
[378]
[379]
[380]
[381]
[382]
[383]
[384]
[385]
[386]
[387]
[388]
[389]
[390]
[391]
[392]
[393]
[394]
[395]
[396]
[397]
[398]
[399]
[400]
[401]
[402]
[403]
[404]
[405]
[406]
[407]
[408]
[409]
[410]
[411]
[412]
[413]
[414]
[]
[]
[]
[]
[]
[]
[415]
[416]
[417]
[418]
[419]
[420]
[421]
[422]
[423]
[424]
[425]
[426]
[427]
[428]
[429]
[430]
[]
[]
[431]
[432]
[433]
[434]
[434]
[435]
[436]
[437]
[438]
[439]
[440]
[441]
[442]
[443]
[444]
[445]
[446]
[447]
[448]
[449]
[450]
[451]
[452]
[453]
[454]
[455]
[456]
[457]
[458]
[459]
[462]
[463]
[464]
[465]
[466]
[467]
[468]
[469]
[470]
[471]
[472]
[473]
[474]
[475]
[476]
[477]
[478]
[479]
[480]
[481]
[482]
[483]
[484]
[485]
[486]
[487]
[488]
[489]
[490]
[491]
[492]
[493]
[494]
[495]
[496]
[497]
[]
[498]
[499]
[500]
[501]
[502]
[503]
[504]
[505]
[506]
[507]
[508]
[509]
[510]
[511]
[512]
[513]
[514]
[515]
[516]
[517]
[518]
[519]
[520]
[521]
[522]
[523]
[524]
[525]
[526]
[527]
[528]
[529]
[530]
[531]
[532]
[533]
[534]
[535]
[536]
[537]
[538]
[539]
[540]
[541]
[542]
[543]
[544]
[545]
[546]
[547]
[548]
[549]
[550]
[551]
[552]
[553]
[554]
[555]
[556]
[557]
[558]
[559]
[560]
[561]
[562]
[563]
[564]
[565]
[566]
[567]
[568]
[569]
[570]
[571]
[572]
[573]
[574]
[575]
[576]
[577]
[578]
[579]
[580]
[581]
[582]
[583]
[584]
[585]
[586]
[587]
[588]
[589]
[590]
[591]
[592]
[593]
[594]
[595]
[596]
[597]
[598]
[599]
[600]
[601]
[602]
[603]
[604]
[605]
[606]
[607]
[608]
[609]
[610]
[611]
[612]
[613]
[614]
[615]
[616]
[617]
[618]
[619]
[620]
[621]
[622]
[623]
[624]
[625]
[626]
[627]
[628]
[629]
[630]
[631]
[632]
[633]
[634]
[635]
[636]
[637]
[638]
[639]
[640]
[641]
[642]
[643]
[644]
[645]
[646]
[647]
[648]
[649]
[650]
[651]
[652]
[653]
[]
[654]
[655]
[656]
[657]
[658]
[659]
[660]
[661]
[662]
[663]
[664]
[665]
[666]
[667]
[668]
[669]
[670]
[671]
[672]
[673]
[674]
[675]
[676]
[677]
[678]
[679]
[680]
[681]
[682]
[683]
[684]
[685]
[686]
[687]
[688]
[689]
[690]
[691]
[692]
[693]
[694]
[695]
[696]
[697]
[698]
[699]
[700]
[701]
[702]
[703]
[704]
[705]
[706]
[707]
[708]
[709]
[710]
[711]
[712]
[713]
[714]
[715]
[716]
[717]
[718]
[719]
[720]
[721]
[722]
[723]
[724]
[725]
[726]
[727]
[728]
[729]
[730]
[731]
[732]
[733]
[734]
[735]
[736]
[737]
[738]
[739]
[740]
[741]
[742]
[743]
[744]
[745]
[746]
[747]
[748]
[749]
[750]
[751]
[752]
[753]
[754]
[755]
[756]
[757]
[758]
[759]
[760]
[761]
[762]
[763]
[764]
[765]
[766]
[767]
[768]
[769]
[770]
[771]
[772]
[773]
[774]
[775]
[776]
[777]
[778]
[779]
[780]
[781]
[782]
[783]
[784]
[785]
[786]
[787]
[788]
[789]
[790]
[791]
[792]
[793]
[794]
[795]
[796]
[797]
[798]
[799]
[800]
[801]
[802]
[803]
[804]
[805]
[806]
[807]
[808]
[809]
[810]
[811]
[812]
[813]
[814]
[815]
[816]
[817]
[818]
[819]
[820]
[821]
[822]
[823]
[824]
[825]
[826]
[827]
[828]
[829]
[830]
[831]
[832]
[833]
[834]
[835]
[836]
[837]
[838]
[839]
[840]
[841]
[842]
[843]
[844]
[845]
[846]
[847]
[848]
[849]
[850]
[851]
[852]
[853]
[854]
[855]
[856]
[857]
[858]
[859]
[860]
[861]
[862]
[863]
[864]
[865]
[866]
[867]
[868]
[869]
[870]
[871]
[872]
[873]
[874]
[875]
[876]
[877]
[878]
[879]
[880]
[881]
[882]
[883]
[884]
[885]
[886]
[887]
[888]
[889]
[890]
[891]
[892]
[893]
[894]
[895]
[896]
[897]
[898]
[899]
[900]
[901]
[902]
[903]
[904]
[905]
[906]
[907]
[908]
[909]
[910]
[911]
[912]
[913]
[914]
[915]
[916]
[917]
[918]
[919]
[920]
[921]
[922]
[923]
[924]
[925]
[926]
[927]
[928]
[929]
[930]
[931]
[932]
[933]
[934]
[935]
[936]
[937]
[938]
[939]
[940]
[941]
[942]
[943]
[944]
[945]
[946]
[947]
[948]
[949]
[950]
[951]
[952]
[953]
[954]
[955]
[956]
[957]
[958]
[959]
[960]
[961]
[962]
[963]
[964]
[965]
[966]

{"sheet":"NFPA70B Intervals","index":2,"n_rows":113,"n_cols":1,"rows_kept":113,"cut":false,"hidden":true,"merged":[[112,0,127,8]]}
[]
["NFPA 70B Maintenance Intervals"]
[]
[]
[]
[]
[]
[]
[]
[]
[]
[]
[]
[]
[]
[]
[]
[]
[]
[]
[]
[]
[]
[]
[]
[]
[]
[]
[]
[]
[]
[]
[]
[]
[]
[]
[]
[]
[]
[]
[]
[]
[]
[]
[]
[]
[]
[]
[]
[]
[]
[]
[]
[]
[]
[]
[]
[]
[]
[]
[]
[]
[]
[]
[]
[]
[]
[]
[]
[]
[]
[]
[]
[]
[]
[]
[]
[]
[]
[]
[]
[]
[]
[]
[]
[]
[]
[]
[]
[]
[]
[]
[]
[]
[]
[]
[]
[]
[]
[]
[]
[]
[]
[]
[]
[]
[]
[]
[]
[]
[]
[]
["Equipment Physical Condition 1 shall be assigned where all the following criteria apply:\n(1) The equipment appears in like new condition.\n(2) The enclosure is clean, free from moisture intrusion, and tight.\n(3) No unaddressed notification from the continuous monitoring system has occurred.\n(4) There are no active recommendations from predictive techniques.\n(5) Previous maintenance has been performed in accordance with the EMP.\n\nEquipment Physical Condition 2 shall be assigned where all of 9.3.1.1 apply, and where any of the following criteria apply:\n(1) Maintenance results deviate from past results or have indicated more frequent maintenance in accordance with manufacturer’s published data.\n(2) The previous maintenance cycle has revealed issues requiring the repair or replacement of major equipment components.\n(3) There have been notifications from the continuous monitoring system since the prior assessment.\n(4) There are active recommendations from predictive techniques.\n\nEquipment Physical Condition 3 shall be assigned where changes in operation are noted or where any of the following criteria applies:\n(1) The equipment has missed the last two successive maintenance cycles in accordance with the EMP.\n(2) The previous two maintenance cycles have revealed issues requiring the repair or replacement of major equipment components.\n(3) There is an active or unaddressed notification from the continuous monitoring system.\n(4) There are urgent actions identified from predictive techniques."]

{"sheet":"Sheet1","index":3,"n_rows":390,"n_cols":52,"rows_kept":390,"cut":false,"hidden":true,"merged":[]}
[]
[]
["DTI #","Make ","Eaton ","Cutler_Hammer","Westinghouse","Square-D","Siemens","Bel","A-B","Hydel","ASCO","Stelpro","Polygon","Telemecanique","Pioneer_Electric","Furnas","Rex","Hammond","Hoffman","Delta","Polygon","Marcus","GE","ITE","FPE","CSL","Equipment","Location","Rating","Problem","Recommendation","Action"]
[221221,"A-B","1HD321N","PRL2A","276A603G02",8536,"49EC17BB241108R","T2103","Centreline\nBUL 2100","ST213","HEOOOO",null,null,null,null,null,"B75JM","K15PB","AST4223R","CDTA0045VHA6XXBA","5H3-9C-R1","MAT175A19","106B D0AGR","NLAB420L","1132SN","JB14718","Breaker","Electrical Room","600V, 10A","No significant thermal irregularities.","IR Ok. ","Normal",null,0,null,null,"SEVERITY",null,"No Repair Required",null,null,null,null,null,null,null,null,null,null,null,null,"N/A"]
[null,"Amalgamated Electric","1HD322N","PRL3A","A294SIAAACU","3CPM130","CDP-7","T2203","2100E-BCT08J1BTDDFTF28","ST214","H03ATSB31200RGXC",null,null,null,null,null,"BC30-J-M/S1/T115/Z3","K112PB","N/A",null,"15CR-1C",null,"106B D1BDS","NDP","1132SN",null,"Contactor","Main Electrical Room","600V, 15A","Suspected loose connection.","IR Ok. Monitor condition.","Investigate",null,1,null,0,"Normal - No Issue Found",0,"Immediately"]
[221222,"ASCO","1HD323N","PRL4A","CDP","A85341","EQ","T3103","8CA-2100-281-81","ST313","G7ADTBB330005XC",null,null,null,null,null,null,"K150PB",null,"DKF-0543-142749","5H3-15CR-1C","MAT75A19","ANLB2",null,"1136SN",null,"Control Panel","Secondary Electrical Room","600V, 20A","Fuses warm. No significant thermal irregularities found.","Review equipment and/or components next IR scan.","Repaired On Site. Review Next Scan",null,2,null,1,"Questionable - Review Next Scan for Similarities",1,"< 1 Month"]
[221223,"Bel","1HD324N","CBL118","D60P28T30H6","A86344","EQ3","T3203","2100E-BCT-08J1BBA086","ST314",null,null,null,null,null,null,null,"K225PB",null,"CDTC0045VHA6XXBA","5H3-30CR-1C","MAT1125A19","ANLB-DL",null,"11-44530",null,"Disconnect Switch","Mechanical Room","600V, 25A","Fuse showing higher than normal temperature.","Could not determine at the time of the scan - Investigate.","Repair Required",null,3,null,2,"Moderate - Slight Problem Found. Not Warranted for Repair Yet",2,"< 2 Months"]
[221224,"CEB","1HD325N","3CBL242","D60P28T75H6","C1125T79H","EQ4","T3400","6501608443/200","ST413",null,null,null,null,null,null,null,"K300PB",null,"DT 0015","CDTA0030VHA6XXBB","MAT30A19","CDP",null,"1232SN",null,"Distribution Panel","Corridor","600V, 30A","Fuses showing different thermal patterns. Possible unbalanced load.","Replace fuses.","Repair When Time Permits",null,4,null,3,"Problematic - Thermal Anomaly Detected. Repair Next Maintenance Outage",3,"< 3 Months"]
[221225,"Commander","1HD361","PRL1","ENCIRC","C15T79H","EQ424225","T3403","2100PE-F5022029/1","ST414",null,null,null,null,null,null,null,"K309K",null,"DKH-0376-143393","5H3-75CR-4C","MAT45A19","NHIB",null,"1236SN",null,"Electrical Panel","Room","600V, 40A","Higher than normal temperatures originating from inside the internal components of the equipment. ","Replace fuse clips.","Monitor",null,5,null,4,"Serious - Thermal Anomaly Detected. If Left Unrepaired, Likely Operational Issues",4,"< 6 Months"]
[221226,"Cutler Hammer","1HD362","PRL2","FDP","C30T79H","EQ424BQ100","T4103","6503370336/000100","ST513",null,null,null,null,null,null,null,"K30PB",null,"VZ3C0075S911007",null,"TWPF-H-AL","SA5743DUSN",null,"1236SN",null,"Fuse","Electrical Room #1","600V, 50A","High temperature connection.","Replace disconnect switch.","Repair Immediately",null,6,null,5,"Severe - High Temperature Detected. Immediate Repair Required. ",5,"< 1 Year"]
[221227,"Delta","1HD363","PRL3","HCDP","C30T79H","EQ430225","T4203","2100-P5049067/01","ST514",null,null,null,null,null,null,null,"K45PB",null,"DA3030V","CDTC0015VHA6XXBB","MAT15A19","TED136020",null,"1332SN",null,"Fuse Holder","Electrical Room #2","600V, 60A","Breaker warm. No significant thermal irregularities found.","Notify utility of problem.",null,null,7,null,6,"Inconclusive - More Data Required. Thorough Investigation Required.",6,"< 2 Years"]
[221228,"Eaton","1HD364","PRL4","HU-361","C45T79H","EQ442225","T4204",null,"ST613",null,null,null,null,null,null,null,"K500PB",null,"N/A","N/A","MK45A1-4","N/A","N/A","1332SN",null,"Fused Switchboard Compartment","Electrical Room #3","600V, 70A","Breaker showing higher than normal temperature.","Shut down equipment when time permits. ",null,null,8,null,null,null,null,"< 3 Years"]
[221229,"FPE","1HD365","PRL1A","HU-362","C75T79H","EQL","T4403",null,"ST614",null,null,null,null,null,null,null,"K75PB",null,"CD3C45VHA6XXBA",null,"MK75A1-4","15M104",null,"1336SN",null,"Main Electrical Switchboard","Electrical Room #4","600V, 80A","One phase of the breaker substantially warmer than the other","Tighten and torque connection. Review next scan.",null,null,9,null,null,null,null,"Review Next Scan"]
[221230,"Furnas","CCPL108","PL1","HU-363","CH326N","HR-7","T4603",null,"ST223",null,null,null,null,null,null,null,"MK015PBKF",null,"CD3C0075HA6XXBA",null,null,"8296-1401",null,"1432SN",null,"Main Switchboard Distribution Section","Electrical Room #5","600V, 90A",null,null,null,null,10]
[221231,"GE","CMP1A","PL2","HU-364","CHU361","ID361","T5203",null,"ST323",null,null,null,null,null,null,null,"MK030PBKF",null,"DA3075V",null,null,"8204-1401",null,"1436SN",null,"MCC",null,"600V, 100A","Current approaching the 80% current limit of the breaker rating.","Replace breaker. "]
[221232,"Hammond","ECL14C1D3E","ATHMFA30100ESC","HU-365","CHU362","ID361NF","T5403",null,"ST324",null,null,null,null,null,null,null,"MK045PBKF",null,"DA3045V",null,"N/A","8297-1401",null,"50H-2",null,"Motor Starter",null,"600V, 110A","Current exceeds 80% of the breaker rating.","Verify that load is not drawing more than 80% of the breaker rating. "]
[221233,"Hoffman","ECX03J1DA3A","RFDN225","HU-366","CHU363","ID362","T5603",null,"ST423",null,null,null,null,null,null,null,"MT113K112PBK",null,"VKTC0045VHA6C1VA",null,null,"8292-1401",null,"90-266100",null,"Splitter",null,"600V, 120A","Wires are showing higher than normal temperature.","Check load for proper phase balancing. Balance phases if required.","Multi-Residential"]
[221234,"Hydel","ECX19B1DKC-C1IA29","1HD323N","HU-367","CHU364","ID362NF","T6403",null,"ST424",null,null,null,null,null,null,null,"MT13075PBK",null,"VKTC0075VHA6C1BA",null,null,"8295-2401",null,"A-38435",null,"Termination",null,"600V, 130A","Extreme high temperature found. ","Check to see if breaker can be upsized. ","Office"]
[221235,"ITE","PRL1","1HD364","HU-368","CHU365","ID363","T6603",null,"ST523",null,null,null,null,null,null,null,"P1L4A272IN",null,"BC45J-M/Z",null,null,"VL3610",null,"B-39E65",null,"Transformer",null,"600V, 140A",null,"Check connection point for loose termination.","Commercial"]
[221236,"Marcus","PRL1A","3CPL230","NBA","CL8538","ID363NF","N/A",null,"ST524",null,null,null,null,null,null,null,"Q007PEAF",null,"DTA0045",null,null,40323,null,"CDP",null,"VFD",null,"600V, 150A",null,"Un-terminate, clean connection point, re-terminate and torque to manufacturers recommendations.","Industrial"]
[221237,"N/A","PRL2","1HD363NF","ON11SO5F1","H321N","ID364","T373",null,"ST623",null,null,null,null,null,null,null,"N/A",null,"3CMA0030VHA6XXBB",null,null,80323,null,"D-38435",null,"ATS",null,"600V, 160A",null,"Shut down equipment immediately. Notify equipment owner. ","Retail"]
[221238,"Pioneer Electric","PRL2A","1HD361","ON28T09F1","H322N","ID364NF","T6203",null,"ST624",null,null,null,null,null,null,null,"NMK300PBC",null,"CD3A0300VHA6XXBD",null,null,20323,null,"DRT",null,"Junction Box",null,"600V, 170A",null,"Fixed on site.","Manufacturing"]
[221239,"Polygon","PRL3","1HD362","PRL1","H323N","ID365","T460",null,"ST343",null,null,null,null,null,null,null,"NMK112PBCF",null,"CDA30045VHA6XXBD",null,null,"THPSL368",null,"I336",null,"MCC Disconnect/Starter",null,"600V, 180A",null,null,"Other"]
[221240,"Rex","PRL4","1HD363","PRL1A","H324N","ID365NF","T6409",null,"ST443",null,null,null,null,null,null,null,"NMK075PBC",null,null,null,null,33360,null,"LPSI436SN",null,"VFD Control Cabinet",null,"600V, 190A",null,null,"> 5 Years"]
[null,"Siemens","N/A","1HD364","PRL2","H325N","ID426","T6400",null,"ST444",null,null,null,null,null,null,null,"NMF050PEC",null,null,null,null,80300,null,"LSP1136SN",null,"Load Break Switch",null,"600V, 200A",null,null,"5-10 Years"]
[221241,"Square D","P2C42ML250CTS","1HD365","PRL2A","H361N","P2G42ML250ATS",null,null,"ST543",null,null,null,null,null,null,null,"NMK075PK",null,null,null,null,"ANLB",null,"LSP1236SN",null,"Capacitor Bank",null,"600V, 225A",null,null,"10-20 Years"]
[221242,"Stelpro","P1C42ML250A","1HD366","PRL3","H361N","S1C42ML250ATS",null,null,"ST544",null,null,null,null,null,null,null,"NMK015PBCN",null,null,null,null,"8297-1501",null,"NBC341",null,"Soft Start",null,"600V, 250A",null,null,"20-30 Years"]
[221243,"Telemecanique","P2L42ML250CTS","1HD367","PRL3A","H362N","SEQ",null,null,"ST643",null,null,null,null,null,null,null,"NMF075PEC",null,null,null,null,null,null,"NBC342",null,"Enclosed Circuit Breaker",null,"600V, 300A",null,null,"30+ Years"]
[221244,"Westinghouse","P1C42ML250CTS","1HD368","PRL4A","H363N","SNC",null,null,"ST644",null,null,null,null,null,null,null,"CST4404",null,null,null,null,null,null,"NBC343",null,"Battery Bank",null,"600V, 350A",null,null,"Other"]
[221245,"ABB","Freedom Series 2100","3HD361","WHF-421N","H364N","V7H3605J",null,null,"ST563",null,null,null,null,null,null,null,"CST4204",null,null,null,null,null,null,"NBC344",null,null,null,"600V, 400A"]
[221246,"Sylvania","PRL3A","3HD362","WHF-422N","H365N","V7H3606",null,null,"ST564",null,null,null,null,null,null,null,"CST3204",null,null,null,null,null,null,"NBC345",null,null,null,"600V, 450A",null,null,"Yes"]
[221247,"Eurobex","3CPL124","3HD363","WHF-423N","H366N","V7H3606J",null,null,"ST663",null,null,null,null,null,null,null,null,null,null,null,null,null,null,"NBC346",null,null,null,"600V, 500A",null,null,"No"]
[221248,"Allen Bradley","2A92907G11","3HD364","WHF-424N","H367N","VB357BL",null,null,"ST664",null,null,null,null,null,null,null,null,null,null,null,null,null,null,"NBC347",null,null,null,"600V, 600A",null,null,"Not Apparent"]
[221249,"Kohler","3MTB61200R","3HD365","WHF-425N","I-LINE","N/A",null,null,"SB013",null,null,null,null,null,null,null,null,null,null,null,null,null,null,"NBDP",null,null,null,"600V, 800A"]
[221250,"Schneider","CLDC","3HD366","WHF-426N","NF","AEAHDWO 008",null,null,"SB014",null,null,null,null,null,null,null,null,null,null,null,null,null,null,"NBLP",null,null,null,"600V, 1000A",null,null,"Breaker"]
[null,"Gentec","ATS5BI30600ESC","3HD367","N/A","NF412L1","P2C42ML250CTS",null,null,"SB023",null,null,null,null,null,null,null,null,null,null,null,null,null,null,"NBLP 30-4L",null,null,null,"600V, 1200A",null,null,"Fuse"]
[null,"Taylor Electric","1HD364NF","3HD368","HNF421N","NQ","P1C42ML250A",null,null,"SB024",null,null,null,null,null,null,null,null,null,null,null,null,null,null,"NBLP-12-3L",null,null,null,"600V, 1600A",null,null,"Other"]
[null,"EngA","ECN0708AJA","1HD361NF","HNF365","QBL442","P2L42ML250CTS",null,null,"SB043",null,null,null,null,null,null,null,null,null,null,null,null,null,null,"NBLP-24-4L",null,null,null,"600V, 1800A"]
[null,"Liebert","FDPW 365J","1HD362NF","HNU362","QMB","P1C42ML250CTS",null,null,"SB044",null,null,null,null,null,null,null,null,null,null,null,null,null,null,"NBLP24-TS12",null,null,null,"600V, 2000A",null,null,"LSIG"]
[null,"Moeller","FSMCB200","1HD363NF","F60P28T49H5","QO","T3G30045C5DXX",null,null,"SB063",null,null,null,null,null,null,null,null,null,null,null,null,null,null,"NBLP36-TS32",null,null,null,"600V, 3000A",null,null,"LSG"]
[null,"ThyssenKrupp","FSMC6060","1HD364NF",null,"QO-412","P2G42ML250ETS",null,null,"SB064",null,null,null,null,null,null,null,null,null,null,null,null,null,null,"NBLP-40-2L",null,null,null,"600V, 4000A",null,null,"LG"]
[null,"TornaTech","V1AD16K","1HD365NF",null,"QO-8","P2M18ML125ETS",null,null,"STR644",null,null,null,null,null,null,null,null,null,null,null,null,null,null,"NBLP-42-4L",null,null,null,"600V, 5000A",null,null,"G"]
[null,"Leviton","P4L4A12-24","1HD366NF",null,"SDG16","NMK045PBC",null,null,"STR664",null,null,null,null,null,null,null,null,null,null,null,null,null,null,"NHDP",null,null,null,"347/600V, 10A",null,null,"None"]
[null,"Merlin Gerin","P3AL4A2-13","1HD367NF",null,"N/A","P1C42ML250ETS",null,null,"STR884",null,null,null,null,null,null,null,null,null,null,null,null,null,null,"NHDP242-46L",null,null,null,"347/600V, 15A"]
[null,"Johnson Controls","P1AB4A2-24ED","1HD368NF",null,5336,"P1L30ML250ATS",null,null,"STR10104",null,null,null,null,null,null,null,null,null,null,null,null,null,null,"N/A",null,null,null,"347/600V, 20A",null,null,"Multiple"]
[null,"Danfoss","P3AL4A2-21","1HD321",null,"C82344","P1C66ML250CTLT",null,null,"STR12124",null,null,null,null,null,null,null,null,null,null,null,null,null,null,"NBLP-12-4L",null,null,null,"347/600V, 25A",null,null,"Single"]
[null,"Rheem Ruud","P2AL4R1-24","1HD322",null,"H5336","P1C42ML250ATS",null,null,"STR12126",null,null,null,null,null,null,null,null,null,null,null,null,null,null,"H1136",null,null,null,"347/600V, 30A",null,null,"Unknown"]
[null,"Bussman","P2AL4R1-30","1HD323",null,"MDV-2035 TS","S1C42ML250CTS",null,null,"STR18126",null,null,null,null,null,null,null,null,null,null,null,null,null,null,"H1336",null,null,null,"347/600V, 40A"]
[null,"Thomson","P1Al4A4-84","1HD324",null,"NQOB","T3G30045C5VXX",null,null,"STR18186",null,null,null,null,null,null,null,null,null,null,null,null,null,null,"H5336",null,null,null,"347/600V, 50A",null,null,"OK"]
[null,"nVent","P3AB4R4-34KD","1HD325",null,"EE30T65H","S3G54ML225CBS",null,null,"STR24186",null,null,null,null,null,null,null,null,null,null,null,null,null,null,"NBLP30B-4LI",null,null,null,"347/600V, 60A",null,null,"NA"]
[null,"Otis","P1Al4A4-60","1HD326",null,"EE45T65H","P1C42ML250CBS",null,null,"T0",null,null,null,null,null,null,null,null,null,null,null,null,null,null,"1636SN",null,null,null,"347/600V, 70A",null,null,"NV"]
[null,"Lorain","PRL1X","1HD261",null,"QOC20U100C","P1C42ML125CBS",null,null,"T1",null,null,null,null,null,null,null,null,null,null,null,null,null,null,"H5636",null,null,null,"347/600V, 80A",null,null,"DEF"]
[null,"Alpha",null,"1HD262",null,"QO403L100S","T3G30030C5DXXE",null,null,"T2",null,null,null,null,null,null,null,null,null,null,null,null,null,null,"NHIB",null,null,null,"347/600V, 90A"]
[null,null,null,"1HD263",null,"A81344","DUD92BFA3DCFAG11Z6",null,null,"T4",null,null,null,null,null,null,null,null,null,null,null,null,null,null,5236,null,null,null,"347/600V, 100A",null,null,"Dynamic Thermal Imaging Inc."]
[null,null,null,"1HD264",null,"A87413","89BSA2P69001",null,null,"T6",null,null,null,null,null,null,null,null,null,null,null,null,null,null,5266,null,null,null,"347/600V, 110A"]
[null,null,null,"1HD265",null,"CH361AWK","V7H3604J",null,null,"B0",null,null,null,null,null,null,null,null,null,null,null,null,null,null,"QMQB",null,null,null,"347/600V, 120A"]
[null,null,null,"1HD266",null,"QOC16UC","ID365NF",null,null,"B1",null,null,null,null,null,null,null,null,null,null,null,null,null,null,"1632SN",null,null,null,"347/600V, 130A"]
[null,null,null,"1HD267",null,"NQOD442L225","L1NE100",null,null,"B2",null,null,null,null,null,null,null,null,null,null,null,null,null,null,1336,null,null,null,"347/600V, 140A"]
[null,null,null,"1HD261NF",null,"QO-430","QMBF P2036",null,null,"B4",null,null,null,null,null,null,null,null,null,null,null,null,null,null,5636,null,null,null,"347/600V, 150A"]
[null,null,null,"1HD262NF",null,"NQ442L2C","QMBF P3036",null,null,"B6",null,null,null,null,null,null,null,null,null,null,null,null,null,null,1236,null,null,null,"347/600V, 160A"]
[null,null,null,"1HD263NF",null,"CH364AWK","QMBF P4036",null,null,"IST16127",null,null,null,null,null,null,null,null,null,null,null,null,null,null,"C1336",null,null,null,"347/600V, 170A"]
[null,null,null,"1HD264NF",null,"M742493/H","P2C78FD125CBS",null,null,"IST20167",null,null,null,null,null,null,null,null,null,null,null,null,null,null,"PDT-28-4L",null,null,null,"347/600V, 180A"]
[null,null,null,"1HD265NF",null,"QBL430","GFC323N",null,null,"IST20207",null,null,null,null,null,null,null,null,null,null,null,null,null,null,230061,null,null,null,"347/600V, 190A"]
[null,null,null,"1HD266NF",null,"HCN3254-2A","P2C42ML250CBS",null,null,"IST24207",null,null,null,null,null,null,null,null,null,null,null,null,null,null,430061,null,null,null,"347/600V, 200A"]
[null,null,null,"1HD461NF",null,"CH362","P1C30ML250ATS",null,null,"IST24209",null,null,null,null,null,null,null,null,null,null,null,null,null,null,131361,null,null,null,"347/600V, 225A"]
[null,null,null,"1HD462NF",null,"QBL424","P1C42ML125CTS",null,null,"IST24247",null,null,null,null,null,null,null,null,null,null,null,null,null,null,"TB400-4L",null,null,null,"347/600V, 250A"]
[null,null,null,"1HD463NF",null,"NQOD424L100","P2L42ML400ETS",null,null,"IST24249",null,null,null,null,null,null,null,null,null,null,null,null,null,null,"NBDP664-4L",null,null,null,"347/600V, 300A"]
[null,null,null,"1HD464NF",null,"NYIB","P2L42ML225ETS",null,null,"IST30207",null,null,null,null,null,null,null,null,null,null,null,null,null,null,"QMB2036",null,null,null,"347/600V, 350A"]
[null,null,null,"1HD465NF",null,"HCM","P1C42ML250CTS",null,null,"IST30209",null,null,null,null,null,null,null,null,null,null,null,null,null,null,"QMB1136",null,null,null,"347/600V, 400A"]
[null,null,null,"PRL1a",null,"YBM4202","T3G30112C1V1M",null,null,"IST30247",null,null,null,null,null,null,null,null,null,null,null,null,null,null,"QMB1136",null,null,null,"347/600V, 450A"]
[null,null,null,"PRL2a",null,"MAL36400","P2C42QH225CTS",null,null,"IST30249",null,null,null,null,null,null,null,null,null,null,null,null,null,null,"QMB2036C",null,null,null,"347/600V, 500A"]
[null,null,null,"PRL3a",null,"YBM4202","T3G30050C1V1M",null,null,"IST302412",null,null,null,null,null,null,null,null,null,null,null,null,null,null,"QMB2036C",null,null,null,"347/600V, 600A"]
[null,null,null,"PRL3e",null,"FAL36020","NLAB442A",null,null,"IST36247",null,null,null,null,null,null,null,null,null,null,null,null,null,null,"QMQB1136",null,null,null,"347/600V, 800A"]
[null,null,null,"PRL4B",null,"FAL36030","ID324",null,null,"IST36249",null,null,null,null,null,null,null,null,null,null,null,null,null,null,"QMQB1136",null,null,null,"347/600V, 1000A"]
[null,null,null,"PRL4F",null,"FAL36015","P1C30ML125ATS",null,null,"IST362412",null,null,null,null,null,null,null,null,null,null,null,null,null,null,"NBDP-42-4L",null,null,null,"347/600V, 1200A"]
[null,null,null,"PRL4X",null,"FAL36030","ID363",null,null,"IST362416",null,null,null,null,null,null,null,null,null,null,null,null,null,null,"QMQB8832",null,null,null,"347/600V, 1600A"]
[null,null,null,"PRL5P",null,"KAL36175","V7H3605H",null,null,"IST36309",null,null,null,null,null,null,null,null,null,null,null,null,null,null,"NBDP664-4LCI",null,null,null,"347/600V, 1800A"]
[null,null,null,"PRL1a-LX",null,"FHP36040","ID321",null,null,"IST363012",null,null,null,null,null,null,null,null,null,null,null,null,null,null,"NBLP42B-4LCI",null,null,null,"347/600V, 2000A"]
[null,null,null,"PRL2a-LX",null,"FHP36045","V1AD16K",null,null,"IST363016",null,null,null,null,null,null,null,null,null,null,null,null,null,null,"342-0",null,null,null,"347/600V, 3000A"]
[null,null,null,"Freedom Series 2100",null,"FHP36015","T3G30075C1V1M",null,null,"IST42249",null,null,null,null,null,null,null,null,null,null,null,null,null,null,null,null,null,null,"347/600V, 4000A"]
[null,null,null,"SPB100",null,"FHP36020","T3G30150C1V1M",null,null,"IST422412",null,null,null,null,null,null,null,null,null,null,null,null,null,null,null,null,null,null,"347/600V, 5000A"]
[null,null,null,null,null,"QBM442","P2C66ML125CTS",null,null,"IST422416"]
[null,null,null,null,null,"MCA2","LR21927",null,null,"IST423012"]
[null,null,null,null,null,"NYIB","P2C78FD250ATS",null,null,"IST423016"]
[null,null,null,null,null,"YBL4442","P1C42ML125ATS",null,null,"IST423612",null,null,null,null,null,null,null,null,null,null,null,null,null,null,null,null,null,null,"120V, 10A"]
[null,null,null,null,null,"A86342","P1C42ML125CTF",null,null,"IST423616",null,null,null,null,null,null,null,null,null,null,null,null,null,null,null,null,null,null,"120V, 15A"]
[null,null,null,null,null,87415,"T3G30075C5VXXE",null,null,"IST483612",null,null,null,null,null,null,null,null,null,null,null,null,null,null,null,null,null,null,"120V, 20A"]
[null,null,null,null,null,"QUOC16UC","P1C42ML250CTST",null,null,"IST483616",null,null,null,null,null,null,null,null,null,null,null,null,null,null,null,null,null,null,"120V, 25A"]
[null,null,null,null,null,"NQ430LQ","P1C42ML125CTST",null,null,"ST22253",null,null,null,null,null,null,null,null,null,null,null,null,null,null,null,null,null,null,"120V, 30A"]
[null,null,null,null,null,"NF442L4","HNFC361J",null,null,"ST32253",null,null,null,null,null,null,null,null,null,null,null,null,null,null,null,null,null,null,"120V, 40A"]
[null,null,null,null,null,"NW32H1","HNFC362J",null,null,"ST42253",null,null,null,null,null,null,null,null,null,null,null,null,null,null,null,null,null,null,"120V, 50A"]
[null,null,null,null,null,"RG2000","HNFC361S",null,null,"ST34003",null,null,null,null,null,null,null,null,null,null,null,null,null,null,null,null,null,null,"120V, 60A"]
[null,null,null,null,null,"RG2000","HNFC363J",null,null,"ST44003",null,null,null,null,null,null,null,null,null,null,null,null,null,null,null,null,null,null,"120V, 70A"]
[null,null,null,null,null,"MHL36800","S3G54ML125ATS",null,null,"ST54003",null,null,null,null,null,null,null,null,null,null,null,null,null,null,null,null,null,null,"120V, 80A"]
[null,null,null,null,null,"NW32H",null,null,null,"ST64003",null,null,null,null,null,null,null,null,null,null,null,null,null,null,null,null,null,null,"120V, 90A"]
[null,null,null,null,null,"HCM",null,null,null,"ST56003",null,null,null,null,null,null,null,null,null,null,null,null,null,null,null,null,null,null,"120V, 100A"]
[null,null,null,null,null,"YBL4242",null,null,null,"ST66003",null,null,null,null,null,null,null,null,null,null,null,null,null,null,null,null,null,null,"120V, 110A"]
[null,null,null,null,null,"M702035",null,null,null,"3ST22253",null,null,null,null,null,null,null,null,null,null,null,null,null,null,null,null,null,null,"120V, 120A"]
[null,null,null,null,null,"M62631568",null,null,null,"3ST32253",null,null,null,null,null,null,null,null,null,null,null,null,null,null,null,null,null,null,"120V, 130A"]
[null,null,null,null,null,"M63797A",null,null,null,"3ST42253",null,null,null,null,null,null,null,null,null,null,null,null,null,null,null,null,null,null,"120V, 140A"]
[null,null,null,null,null,"MM738467X-A",null,null,null,"3ST34003",null,null,null,null,null,null,null,null,null,null,null,null,null,null,null,null,null,null,"120V, 150A"]
[null,null,null,null,null,"M713672-A",null,null,null,"3ST44003",null,null,null,null,null,null,null,null,null,null,null,null,null,null,null,null,null,null,"120V, 160A"]
[null,null,null,null,null,null,null,null,null,"3ST54003",null,null,null,null,null,null,null,null,null,null,null,null,null,null,null,null,null,null,"120V, 170A"]
[null,null,null,null,null,null,null,null,null,"3ST64003",null,null,null,null,null,null,null,null,null,null,null,null,null,null,null,null,null,null,"120V, 180A"]
[null,null,null,null,null,null,null,null,null,"3ST56003",null,null,null,null,null,null,null,null,null,null,null,null,null,null,null,null,null,null,"120V, 190A"]
[null,null,null,null,null,null,null,null,null,"3ST66003",null,null,null,null,null,null,null,null,null,null,null,null,null,null,null,null,null,null,"120V, 200A"]
[null,null,null,null,null,null,null,null,null,"MC271310",null,null,null,null,null,null,null,null,null,null,null,null,null,null,null,null,null,null,"120V, 225A"]
[null,null,null,null,null,null,null,null,null,"MC202010",null,null,null,null,null,null,null,null,null,null,null,null,null,null,null,null,null,null,"120V, 250A"]
[null,null,null,null,null,null,null,null,null,"MC302010",null,null,null,null,null,null,null,null,null,null,null,null,null,null,null,null,null,null,"120V, 300A"]
[null,null,null,null,null,null,null,null,null,"MC242410",null,null,null,null,null,null,null,null,null,null,null,null,null,null,null,null,null,null,"120V, 350A"]
[null,null,null,null,null,null,null,null,null,"MC303010",null,null,null,null,null,null,null,null,null,null,null,null,null,null,null,null,null,null,"120V, 400A"]
[null,null,null,null,null,null,null,null,null,"MC363612",null,null,null,null,null,null,null,null,null,null,null,null,null,null,null,null,null,null,"120V, 450A"]
[null,null,null,null,null,null,null,null,null,"MC484812",null,null,null,null,null,null,null,null,null,null,null,null,null,null,null,null,null,null,"120V, 500A"]
[null,null,null,null,null,null,null,null,null,"CTS409PW",null,null,null,null,null,null,null,null,null,null,null,null,null,null,null,null,null,null,"120V, 600A"]
[null,null,null,null,null,null,null,null,null,"CTS459PW",null,null,null,null,null,null,null,null,null,null,null,null,null,null,null,null,null,null,"120V, 800A"]
[null,null,null,null,null,null,null,null,null,"CTS400PW",null,null,null,null,null,null,null,null,null,null,null,null,null,null,null,null,null,null,"120V, 1000A"]
[null,null,null,null,null,null,null,null,null,"CTS500PW",null,null,null,null,null,null,null,null,null,null,null,null,null,null,null,null,null,null,"120V, 1200A"]
[null,null,null,null,null,null,null,null,null,"CTS405PW",null,null,null,null,null,null,null,null,null,null,null,null,null,null,null,null,null,null,"120V, 1600A"]
[null,null,null,null,null,null,null,null,null,"CTS800PW",null,null,null,null,null,null,null,null,null,null,null,null,null,null,null,null,null,null,"120V, 1800A"]
[null,null,null,null,null,null,null,null,null,"CTS130PW",null,null,null,null,null,null,null,null,null,null,null,null,null,null,null,null,null,null,"120V, 2000A"]
[null,null,null,null,null,null,null,null,null,"CTS139PW",null,null,null,null,null,null,null,null,null,null,null,null,null,null,null,null,null,null,"120V, 3000A"]
[null,null,null,null,null,null,null,null,null,"SH400PW",null,null,null,null,null,null,null,null,null,null,null,null,null,null,null,null,null,null,"120V, 4000A"]
[null,null,null,null,null,null,null,null,null,"SH400JW",null,null,null,null,null,null,null,null,null,null,null,null,null,null,null,null,null,null,"120V, 5000A"]
[null,null,null,null,null,null,null,null,null,"SH400BW",null,null,null,null,null,null,null,null,null,null,null,null,null,null,null,null,null,null,"120V, 125A"]
[null,null,null,null,null,null,null,null,null,"SH400BP"]
[null,null,null,null,null,null,null,null,null,"SH400TW"]
[null,null,null,null,null,null,null,null,null,"SH400KO",null,null,null,null,null,null,null,null,null,null,null,null,null,null,null,null,null,null,"120/208V, 10A"]
[null,null,null,null,null,null,null,null,null,"SE400RW",null,null,null,null,null,null,null,null,null,null,null,null,null,null,null,null,null,null,"120/208V, 15A"]
[null,null,null,null,null,null,null,null,null,"SE400PW",null,null,null,null,null,null,null,null,null,null,null,null,null,null,null,null,null,null,"120/208V, 20A"]
[null,null,null,null,null,null,null,null,null,"SE400JW",null,null,null,null,null,null,null,null,null,null,null,null,null,null,null,null,null,null,"120/208V, 25A"]
[null,null,null,null,null,null,null,null,null,"SE400BW",null,null,null,null,null,null,null,null,null,null,null,null,null,null,null,null,null,null,"120/208V, 30A","600V:208Y/120V, 15kVA"]
[null,null,null,null,null,null,null,null,null,"SE400BP",null,null,null,null,null,null,null,null,null,null,null,null,null,null,null,null,null,null,"120/208V, 40A","600V:208Y/120V, 30kVA"]
[null,null,null,null,null,null,null,null,null,"SE400TW",null,null,null,null,null,null,null,null,null,null,null,null,null,null,null,null,null,null,"120/208V, 50A","600V:208Y/120V, 45kVA"]
[null,null,null,null,null,null,null,null,null,"SE405RW",null,null,null,null,null,null,null,null,null,null,null,null,null,null,null,null,null,null,"120/208V, 60A","600V:208Y/120V, 75kVA"]
[null,null,null,null,null,null,null,null,null,"SE420RW",null,null,null,null,null,null,null,null,null,null,null,null,null,null,null,null,null,null,"120/208V, 70A","600V:208Y/120V, 112.5kVA"]
[null,null,null,null,null,null,null,null,null,"SFC700PW",null,null,null,null,null,null,null,null,null,null,null,null,null,null,null,null,null,null,"120/208V, 80A","600V:208Y/120V, 225kVA"]
[null,null,null,null,null,null,null,null,null,"SFC703PW",null,null,null,null,null,null,null,null,null,null,null,null,null,null,null,null,null,null,"120/208V, 90A","600V:208Y/120V, 300kVA"]
[null,null,null,null,null,null,null,null,null,"SFC700RW",null,null,null,null,null,null,null,null,null,null,null,null,null,null,null,null,null,null,"120/208V, 100A","600V:208Y/120V, 500kVA"]
[null,null,null,null,null,null,null,null,null,"SFC703RW",null,null,null,null,null,null,null,null,null,null,null,null,null,null,null,null,null,null,"120/208V, 110A","600V:240Y/120V, 15kVA"]
[null,null,null,null,null,null,null,null,null,"SFC800PW",null,null,null,null,null,null,null,null,null,null,null,null,null,null,null,null,null,null,"120/208V, 120A","600V:240Y/120V, 30kVA"]
[null,null,null,null,null,null,null,null,null,"SLC400RW",null,null,null,null,null,null,null,null,null,null,null,null,null,null,null,null,null,null,"120/208V, 130A","600V:240Y/120V, 45kVA"]
[null,null,null,null,null,null,null,null,null,"SLC420RW",null,null,null,null,null,null,null,null,null,null,null,null,null,null,null,null,null,null,"120/208V, 140A","600V:240Y/120V, 75kVA"]
[null,null,null,null,null,null,null,null,null,"SLC402RW",null,null,null,null,null,null,null,null,null,null,null,null,null,null,null,null,null,null,"120/208V, 150A","600V:240Y/120V, 112.5kVA"]
[null,null,null,null,null,null,null,null,null,"EK400P",null,null,null,null,null,null,null,null,null,null,null,null,null,null,null,null,null,null,"120/208V, 160A","600V:240Y/120V, 150kVA"]
[null,null,null,null,null,null,null,null,null,"EK400L",null,null,null,null,null,null,null,null,null,null,null,null,null,null,null,null,null,null,"120/208V, 170A","600V:240Y/120V, 225kVA"]
[null,null,null,null,null,null,null,null,null,"EK400D",null,null,null,null,null,null,null,null,null,null,null,null,null,null,null,null,null,null,"120/208V, 180A","600V:240Y/120V, 300kVA"]
[null,null,null,null,null,null,null,null,null,"EK400T",null,null,null,null,null,null,null,null,null,null,null,null,null,null,null,null,null,null,"120/208V, 190A","600V:240Y/120V, 500kVA"]
[null,null,null,null,null,null,null,null,null,"EK400RO",null,null,null,null,null,null,null,null,null,null,null,null,null,null,null,null,null,null,"120/208V, 200A","600V:480Y/277V, 15kVA"]
[null,null,null,null,null,null,null,null,null,"EK400TO",null,null,null,null,null,null,null,null,null,null,null,null,null,null,null,null,null,null,"120/208V, 225A","600V:480Y/277V, 30kVA"]
[null,null,null,null,null,null,null,null,null,"MSC400TW",null,null,null,null,null,null,null,null,null,null,null,null,null,null,null,null,null,null,"120/208V, 250A","600V:480Y/277V, 45kVA"]
[null,null,null,null,null,null,null,null,null,"MSC402TW",null,null,null,null,null,null,null,null,null,null,null,null,null,null,null,null,null,null,"120/208V, 300A","600V:480Y/277V, 75kVA"]
[null,null,null,null,null,null,null,null,null,"STC700PK",null,null,null,null,null,null,null,null,null,null,null,null,null,null,null,null,null,null,"120/208V, 350A","600V:480Y/277V, 112.5kVA"]
[null,null,null,null,null,null,null,null,null,"STC703PK",null,null,null,null,null,null,null,null,null,null,null,null,null,null,null,null,null,null,"120/208V, 400A","600V:480Y/277V, 225kVA"]
[null,null,null,null,null,null,null,null,null,"STC700RK",null,null,null,null,null,null,null,null,null,null,null,null,null,null,null,null,null,null,"120/208V, 450A","600V:480Y/277V, 300kVA"]
[null,null,null,null,null,null,null,null,null,"STC703RK",null,null,null,null,null,null,null,null,null,null,null,null,null,null,null,null,null,null,"120/208V, 500A","600V:480Y/277V, 500kVA"]
[null,null,null,null,null,null,null,null,null,"H22R",null,null,null,null,null,null,null,null,null,null,null,null,null,null,null,null,null,null,"120/208V, 600A","600V:400Y/231V, 15kVA"]
[null,null,null,null,null,null,null,null,null,"H23R",null,null,null,null,null,null,null,null,null,null,null,null,null,null,null,null,null,null,"120/208V, 800A","600V:400Y/231V, 30kVA"]
[null,null,null,null,null,null,null,null,null,"H24R",null,null,null,null,null,null,null,null,null,null,null,null,null,null,null,null,null,null,"120/208V, 1000A","600V:400Y/231V, 45kVA"]
[null,null,null,null,null,null,null,null,null,"H42R",null,null,null,null,null,null,null,null,null,null,null,null,null,null,null,null,null,null,"120/208V, 1200A","600V:400Y/231V, 75kVA"]
[null,null,null,null,null,null,null,null,null,"H43R",null,null,null,null,null,null,null,null,null,null,null,null,null,null,null,null,null,null,"120/208V, 1600A","600V:400Y/231V, 112.5kVA"]
[null,null,null,null,null,null,null,null,null,"H44R",null,null,null,null,null,null,null,null,null,null,null,null,null,null,null,null,null,null,"120/208V, 1800A","600V:400Y/231V, 225kVA"]
[null,null,null,null,null,null,null,null,null,"H45R",null,null,null,null,null,null,null,null,null,null,null,null,null,null,null,null,null,null,"120/208V, 2000A","600V:400Y/231V, 300kVA"]
[null,null,null,null,null,null,null,null,null,"H46R",null,null,null,null,null,null,null,null,null,null,null,null,null,null,null,null,null,null,"120/208V, 3000A","600V:400Y/231V, 500kVA"]
[null,null,null,null,null,null,null,null,null,"HC22R",null,null,null,null,null,null,null,null,null,null,null,null,null,null,null,null,null,null,"120/208V, 4000A","600V:400Y/231V, 150kVA"]
[null,null,null,null,null,null,null,null,null,"HC23R",null,null,null,null,null,null,null,null,null,null,null,null,null,null,null,null,null,null,"120/208V, 5000A"]
[null,null,null,null,null,null,null,null,null,"HC24R"]
[null,null,null,null,null,null,null,null,null,"HC42R"]
[null,null,null,null,null,null,null,null,null,"HC43R"]
[null,null,null,null,null,null,null,null,null,"HC44R",null,null,null,null,null,null,null,null,null,null,null,null,null,null,null,null,null,null,"120/240V, 10A"]
[null,null,null,null,null,null,null,null,null,"HC45R",null,null,null,null,null,null,null,null,null,null,null,null,null,null,null,null,null,null,"120/240V, 15A"]
[null,null,null,null,null,null,null,null,null,"HC46R",null,null,null,null,null,null,null,null,null,null,null,null,null,null,null,null,null,null,"120/240V, 20A"]
[null,null,null,null,null,null,null,null,null,null,null,null,null,null,null,null,null,null,null,null,null,null,null,null,null,null,null,null,"120/240V, 25A"]
[null,null,null,null,null,null,null,null,null,null,null,null,null,null,null,null,null,null,null,null,null,null,null,null,null,null,null,null,"120/240V, 30A"]
[null,null,null,null,null,null,null,null,null,null,null,null,null,null,null,null,null,null,null,null,null,null,null,null,null,null,null,null,"120/240V, 40A"]
[null,null,null,null,null,null,null,null,null,null,null,null,null,null,null,null,null,null,null,null,null,null,null,null,null,null,null,null,"120/240V, 50A"]
[null,null,null,null,null,null,null,null,null,null,null,null,null,null,null,null,null,null,null,null,null,null,null,null,null,null,null,null,"120/240V, 60A"]
[null,null,null,null,null,null,null,null,null,null,null,null,null,null,null,null,null,null,null,null,null,null,null,null,null,null,null,null,"120/240V, 70A"]
[null,null,null,null,null,null,null,null,null,null,null,null,null,null,null,null,null,null,null,null,null,null,null,null,null,null,null,null,"120/240V, 80A"]
[null,null,null,null,null,null,null,null,null,null,null,null,null,null,null,null,null,null,null,null,null,null,null,null,null,null,null,null,"120/240V, 90A"]
[null,null,null,null,null,null,null,null,null,null,null,null,null,null,null,null,null,null,null,null,null,null,null,null,null,null,null,null,"120/240V, 100A"]
[null,null,null,null,null,null,null,null,null,null,null,null,null,null,null,null,null,null,null,null,null,null,null,null,null,null,null,null,"120/240V, 110A"]
[null,null,null,null,null,null,null,null,null,null,null,null,null,null,null,null,null,null,null,null,null,null,null,null,null,null,null,null,"120/240V, 120A"]
[null,null,null,null,null,null,null,null,null,null,null,null,null,null,null,null,null,null,null,null,null,null,null,null,null,null,null,null,"120/240V, 130A"]
[null,null,null,null,null,null,null,null,null,null,null,null,null,null,null,null,null,null,null,null,null,null,null,null,null,null,null,null,"120/240V, 140A"]
[null,null,null,null,null,null,null,null,null,null,null,null,null,null,null,null,null,null,null,null,null,null,null,null,null,null,null,null,"120/240V, 150A"]
[null,null,null,null,null,null,null,null,null,null,null,null,null,null,null,null,null,null,null,null,null,null,null,null,null,null,null,null,"120/240V, 160A"]
[null,null,null,null,null,null,null,null,null,null,null,null,null,null,null,null,null,null,null,null,null,null,null,null,null,null,null,null,"120/240V, 170A"]
[null,null,null,null,null,null,null,null,null,null,null,null,null,null,null,null,null,null,null,null,null,null,null,null,null,null,null,null,"120/240V, 180A"]
[null,null,null,null,null,null,null,null,null,null,null,null,null,null,null,null,null,null,null,null,null,null,null,null,null,null,null,null,"120/240V, 190A"]
[null,null,null,null,null,null,null,null,null,null,null,null,null,null,null,null,null,null,null,null,null,null,null,null,null,null,null,null,"120/240V, 200A"]
[null,null,null,null,null,null,null,null,null,null,null,null,null,null,null,null,null,null,null,null,null,null,null,null,null,null,null,null,"120/240V, 225A"]
[null,null,null,null,null,null,null,null,null,null,null,null,null,null,null,null,null,null,null,null,null,null,null,null,null,null,null,null,"120/240V, 250A"]
[null,null,null,null,null,null,null,null,null,null,null,null,null,null,null,null,null,null,null,null,null,null,null,null,null,null,null,null,"120/240V, 300A"]
[null,null,null,null,null,null,null,null,null,null,null,null,null,null,null,null,null,null,null,null,null,null,null,null,null,null,null,null,"120/240V, 350A"]
[null,null,null,null,null,null,null,null,null,null,null,null,null,null,null,null,null,null,null,null,null,null,null,null,null,null,null,null,"120/240V, 400A"]
[null,null,null,null,null,null,null,null,null,null,null,null,null,null,null,null,null,null,null,null,null,null,null,null,null,null,null,null,"120/240V, 450A"]
[null,null,null,null,null,null,null,null,null,null,null,null,null,null,null,null,null,null,null,null,null,null,null,null,null,null,null,null,"120/240V, 500A"]
[null,null,null,null,null,null,null,null,null,null,null,null,null,null,null,null,null,null,null,null,null,null,null,null,null,null,null,null,"120/240V, 600A"]
[null,null,null,null,null,null,null,null,null,null,null,null,null,null,null,null,null,null,null,null,null,null,null,null,null,null,null,null,"120/240V, 800A"]
[null,null,null,null,null,null,null,null,null,null,null,null,null,null,null,null,null,null,null,null,null,null,null,null,null,null,null,null,"120/240V, 1000A"]
[null,null,null,null,null,null,null,null,null,null,null,null,null,null,null,null,null,null,null,null,null,null,null,null,null,null,null,null,"120/240V, 1200A"]
[null,null,null,null,null,null,null,null,null,null,null,null,null,null,null,null,null,null,null,null,null,null,null,null,null,null,null,null,"120/240V, 1600A"]
[null,null,null,null,null,null,null,null,null,null,null,null,null,null,null,null,null,null,null,null,null,null,null,null,null,null,null,null,"120/240V, 1800A"]
[null,null,null,null,null,null,null,null,null,null,null,null,null,null,null,null,null,null,null,null,null,null,null,null,null,null,null,null,"120/240V, 2000A"]
[null,null,null,null,null,null,null,null,null,null,null,null,null,null,null,null,null,null,null,null,null,null,null,null,null,null,null,null,"120/240V, 3000A"]
[null,null,null,null,null,null,null,null,null,null,null,null,null,null,null,null,null,null,null,null,null,null,null,null,null,null,null,null,"120/240V, 4000A"]
[null,null,null,null,null,null,null,null,null,null,null,null,null,null,null,null,null,null,null,null,null,null,null,null,null,null,null,null,"120/240V, 5000A"]
[null,null,null,null,null,null,null,null,null,null,null,null,null,null,null,null,null,null,null,null,null,null,null,null,null,null,null,null,"240V, 30A"]
[]
[]
[null,null,null,null,null,null,null,null,null,null,null,null,null,null,null,null,null,null,null,null,null,null,null,null,null,null,null,null,"480V, 10A"]
[null,null,null,null,null,null,null,null,null,null,null,null,null,null,null,null,null,null,null,null,null,null,null,null,null,null,null,null,"480V, 15A"]
[null,null,null,null,null,null,null,null,null,null,null,null,null,null,null,null,null,null,null,null,null,null,null,null,null,null,null,null,"480V, 20A"]
[null,null,null,null,null,null,null,null,null,null,null,null,null,null,null,null,null,null,null,null,null,null,null,null,null,null,null,null,"480V, 25A"]
[null,null,null,null,null,null,null,null,null,null,null,null,null,null,null,null,null,null,null,null,null,null,null,null,null,null,null,null,"480V, 30A"]
[null,null,null,null,null,null,null,null,null,null,null,null,null,null,null,null,null,null,null,null,null,null,null,null,null,null,null,null,"480V, 40A"]
[null,null,null,null,null,null,null,null,null,null,null,null,null,null,null,null,null,null,null,null,null,null,null,null,null,null,null,null,"480V, 50A"]
[null,null,null,null,null,null,null,null,null,null,null,null,null,null,null,null,null,null,null,null,null,null,null,null,null,null,null,null,"480V, 60A"]
[null,null,null,null,null,null,null,null,null,null,null,null,null,null,null,null,null,null,null,null,null,null,null,null,null,null,null,null,"480V, 70A"]
[null,null,null,null,null,null,null,null,null,null,null,null,null,null,null,null,null,null,null,null,null,null,null,null,null,null,null,null,"480V, 80A"]
[null,null,null,null,null,null,null,null,null,null,null,null,null,null,null,null,null,null,null,null,null,null,null,null,null,null,null,null,"480V, 90A"]
[null,null,null,null,null,null,null,null,null,null,null,null,null,null,null,null,null,null,null,null,null,null,null,null,null,null,null,null,"480V, 100A"]
[null,null,null,null,null,null,null,null,null,null,null,null,null,null,null,null,null,null,null,null,null,null,null,null,null,null,null,null,"480V, 110A"]
[null,null,null,null,null,null,null,null,null,null,null,null,null,null,null,null,null,null,null,null,null,null,null,null,null,null,null,null,"480V, 120A"]
[null,null,null,null,null,null,null,null,null,null,null,null,null,null,null,null,null,null,null,null,null,null,null,null,null,null,null,null,"480V, 130A"]
[null,null,null,null,null,null,null,null,null,null,null,null,null,null,null,null,null,null,null,null,null,null,null,null,null,null,null,null,"480V, 140A"]
[null,null,null,null,null,null,null,null,null,null,null,null,null,null,null,null,null,null,null,null,null,null,null,null,null,null,null,null,"480V, 150A"]
[null,null,null,null,null,null,null,null,null,null,null,null,null,null,null,null,null,null,null,null,null,null,null,null,null,null,null,null,"480V, 160A"]
[null,null,null,null,null,null,null,null,null,null,null,null,null,null,null,null,null,null,null,null,null,null,null,null,null,null,null,null,"480V, 170A"]
[null,null,null,null,null,null,null,null,null,null,null,null,null,null,null,null,null,null,null,null,null,null,null,null,null,null,null,null,"480V, 180A"]
[null,null,null,null,null,null,null,null,null,null,null,null,null,null,null,null,null,null,null,null,null,null,null,null,null,null,null,null,"480V, 190A"]
[null,null,null,null,null,null,null,null,null,null,null,null,null,null,null,null,null,null,null,null,null,null,null,null,null,null,null,null,"480V, 200A"]
[null,null,null,null,null,null,null,null,null,null,null,null,null,null,null,null,null,null,null,null,null,null,null,null,null,null,null,null,"480V, 225A"]
[null,null,null,null,null,null,null,null,null,null,null,null,null,null,null,null,null,null,null,null,null,null,null,null,null,null,null,null,"480V, 250A"]
[null,null,null,null,null,null,null,null,null,null,null,null,null,null,null,null,null,null,null,null,null,null,null,null,null,null,null,null,"480V, 300A"]
[null,null,null,null,null,null,null,null,null,null,null,null,null,null,null,null,null,null,null,null,null,null,null,null,null,null,null,null,"480V, 350A"]
[null,null,null,null,null,null,null,null,null,null,null,null,null,null,null,null,null,null,null,null,null,null,null,null,null,null,null,null,"480V, 400A"]
[null,null,null,null,null,null,null,null,null,null,null,null,null,null,null,null,null,null,null,null,null,null,null,null,null,null,null,null,"480V, 450A"]
[null,null,null,null,null,null,null,null,null,null,null,null,null,null,null,null,null,null,null,null,null,null,null,null,null,null,null,null,"480V, 500A"]
[null,null,null,null,null,null,null,null,null,null,null,null,null,null,null,null,null,null,null,null,null,null,null,null,null,null,null,null,"480V, 600A"]
[null,null,null,null,null,null,null,null,null,null,null,null,null,null,null,null,null,null,null,null,null,null,null,null,null,null,null,null,"480V, 800A"]
[null,null,null,null,null,null,null,null,null,null,null,null,null,null,null,null,null,null,null,null,null,null,null,null,null,null,null,null,"480V, 1000A"]
[null,null,null,null,null,null,null,null,null,null,null,null,null,null,null,null,null,null,null,null,null,null,null,null,null,null,null,null,"480V, 1200A"]
[null,null,null,null,null,null,null,null,null,null,null,null,null,null,null,null,null,null,null,null,null,null,null,null,null,null,null,null,"480V, 1600A"]
[null,null,null,null,null,null,null,null,null,null,null,null,null,null,null,null,null,null,null,null,null,null,null,null,null,null,null,null,"480V, 1800A"]
[null,null,null,null,null,null,null,null,null,null,null,null,null,null,null,null,null,null,null,null,null,null,null,null,null,null,null,null,"480V, 2000A"]
[null,null,null,null,null,null,null,null,null,null,null,null,null,null,null,null,null,null,null,null,null,null,null,null,null,null,null,null,"480V, 3000A"]
[null,null,null,null,null,null,null,null,null,null,null,null,null,null,null,null,null,null,null,null,null,null,null,null,null,null,null,null,"480V, 4000A"]
[null,null,null,null,null,null,null,null,null,null,null,null,null,null,null,null,null,null,null,null,null,null,null,null,null,null,null,null,"480V, 5000A"]
[]
[]
[]
[null,null,null,null,null,null,null,null,null,null,null,null,null,null,null,null,null,null,null,null,null,null,null,null,null,null,null,null,"277/480V, 10A"]
[null,null,null,null,null,null,null,null,null,null,null,null,null,null,null,null,null,null,null,null,null,null,null,null,null,null,null,null,"277/480V, 15A"]
[null,null,null,null,null,null,null,null,null,null,null,null,null,null,null,null,null,null,null,null,null,null,null,null,null,null,null,null,"277/480V, 20A"]
[null,null,null,null,null,null,null,null,null,null,null,null,null,null,null,null,null,null,null,null,null,null,null,null,null,null,null,null,"277/480V, 25A"]
[null,null,null,null,null,null,null,null,null,null,null,null,null,null,null,null,null,null,null,null,null,null,null,null,null,null,null,null,"277/480V, 30A"]
[null,null,null,null,null,null,null,null,null,null,null,null,null,null,null,null,null,null,null,null,null,null,null,null,null,null,null,null,"277/480V, 40A"]
[null,null,null,null,null,null,null,null,null,null,null,null,null,null,null,null,null,null,null,null,null,null,null,null,null,null,null,null,"277/480V, 50A"]
[null,null,null,null,null,null,null,null,null,null,null,null,null,null,null,null,null,null,null,null,null,null,null,null,null,null,null,null,"277/480V, 60A"]
[null,null,null,null,null,null,null,null,null,null,null,null,null,null,null,null,null,null,null,null,null,null,null,null,null,null,null,null,"277/480V, 70A"]
[null,null,null,null,null,null,null,null,null,null,null,null,null,null,null,null,null,null,null,null,null,null,null,null,null,null,null,null,"277/480V, 80A"]
[null,null,null,null,null,null,null,null,null,null,null,null,null,null,null,null,null,null,null,null,null,null,null,null,null,null,null,null,"277/480V, 90A"]
[null,null,null,null,null,null,null,null,null,null,null,null,null,null,null,null,null,null,null,null,null,null,null,null,null,null,null,null,"277/480V, 100A"]
[null,null,null,null,null,null,null,null,null,null,null,null,null,null,null,null,null,null,null,null,null,null,null,null,null,null,null,null,"277/480V, 110A"]
[null,null,null,null,null,null,null,null,null,null,null,null,null,null,null,null,null,null,null,null,null,null,null,null,null,null,null,null,"277/480V, 120A"]
[null,null,null,null,null,null,null,null,null,null,null,null,null,null,null,null,null,null,null,null,null,null,null,null,null,null,null,null,"277/480V, 130A"]
[null,null,null,null,null,null,null,null,null,null,null,null,null,null,null,null,null,null,null,null,null,null,null,null,null,null,null,null,"277/480V, 140A"]
[null,null,null,null,null,null,null,null,null,null,null,null,null,null,null,null,null,null,null,null,null,null,null,null,null,null,null,null,"277/480V, 150A"]
[null,null,null,null,null,null,null,null,null,null,null,null,null,null,null,null,null,null,null,null,null,null,null,null,null,null,null,null,"277/480V, 160A"]
[null,null,null,null,null,null,null,null,null,null,null,null,null,null,null,null,null,null,null,null,null,null,null,null,null,null,null,null,"277/480V, 170A"]
[null,null,null,null,null,null,null,null,null,null,null,null,null,null,null,null,null,null,null,null,null,null,null,null,null,null,null,null,"277/480V, 180A"]
[null,null,null,null,null,null,null,null,null,null,null,null,null,null,null,null,null,null,null,null,null,null,null,null,null,null,null,null,"277/480V, 190A"]
[null,null,null,null,null,null,null,null,null,null,null,null,null,null,null,null,null,null,null,null,null,null,null,null,null,null,null,null,"277/480V, 200A"]
[null,null,null,null,null,null,null,null,null,null,null,null,null,null,null,null,null,null,null,null,null,null,null,null,null,null,null,null,"277/480V, 225A"]
[null,null,null,null,null,null,null,null,null,null,null,null,null,null,null,null,null,null,null,null,null,null,null,null,null,null,null,null,"277/480V, 250A"]
[null,null,null,null,null,null,null,null,null,null,null,null,null,null,null,null,null,null,null,null,null,null,null,null,null,null,null,null,"277/480V, 300A"]
[null,null,null,null,null,null,null,null,null,null,null,null,null,null,null,null,null,null,null,null,null,null,null,null,null,null,null,null,"277/480V, 350A"]
[null,null,null,null,null,null,null,null,null,null,null,null,null,null,null,null,null,null,null,null,null,null,null,null,null,null,null,null,"277/480V, 400A"]
[null,null,null,null,null,null,null,null,null,null,null,null,null,null,null,null,null,null,null,null,null,null,null,null,null,null,null,null,"277/480V, 450A"]
[null,null,null,null,null,null,null,null,null,null,null,null,null,null,null,null,null,null,null,null,null,null,null,null,null,null,null,null,"277/480V, 500A"]
[null,null,null,null,null,null,null,null,null,null,null,null,null,null,null,null,null,null,null,null,null,null,null,null,null,null,null,null,"277/480V, 600A"]
[null,null,null,null,null,null,null,null,null,null,null,null,null,null,null,null,null,null,null,null,null,null,null,null,null,null,null,null,"277/480V, 800A"]
[null,null,null,null,null,null,null,null,null,null,null,null,null,null,null,null,null,null,null,null,null,null,null,null,null,null,null,null,"277/480V, 1000A"]
[null,null,null,null,null,null,null,null,null,null,null,null,null,null,null,null,null,null,null,null,null,null,null,null,null,null,null,null,"277/480V, 1200A"]
[null,null,null,null,null,null,null,null,null,null,null,null,null,null,null,null,null,null,null,null,null,null,null,null,null,null,null,null,"277/480V, 1600A"]
[null,null,null,null,null,null,null,null,null,null,null,null,null,null,null,null,null,null,null,null,null,null,null,null,null,null,null,null,"277/480V, 1800A"]
[null,null,null,null,null,null,null,null,null,null,null,null,null,null,null,null,null,null,null,null,null,null,null,null,null,null,null,null,"277/480V, 2000A"]
[null,null,null,null,null,null,null,null,null,null,null,null,null,null,null,null,null,null,null,null,null,null,null,null,null,null,null,null,"277/480V, 3000A"]
[null,null,null,null,null,null,null,null,null,null,null,null,null,null,null,null,null,null,null,null,null,null,null,null,null,null,null,null,"277/480V, 4000A"]
[null,null,null,null,null,null,null,null,null,null,null,null,null,null,null,null,null,null,null,null,null,null,null,null,null,null,null,null,"277/480V, 5000A"]
[]
[]
[]
[null,null,null,null,null,null,null,null,null,null,null,null,null,null,null,null,null,null,null,null,null,null,null,null,null,null,null,null,"231/400V, 10A"]
[null,null,null,null,null,null,null,null,null,null,null,null,null,null,null,null,null,null,null,null,null,null,null,null,null,null,null,null,"231/400V, 15A"]
[null,null,null,null,null,null,null,null,null,null,null,null,null,null,null,null,null,null,null,null,null,null,null,null,null,null,null,null,"231/400V, 20A"]
[null,null,null,null,null,null,null,null,null,null,null,null,null,null,null,null,null,null,null,null,null,null,null,null,null,null,null,null,"231/400V, 25A"]
[null,null,null,null,null,null,null,null,null,null,null,null,null,null,null,null,null,null,null,null,null,null,null,null,null,null,null,null,"231/400V, 30A"]
[null,null,null,null,null,null,null,null,null,null,null,null,null,null,null,null,null,null,null,null,null,null,null,null,null,null,null,null,"231/400V, 40A"]
[null,null,null,null,null,null,null,null,null,null,null,null,null,null,null,null,null,null,null,null,null,null,null,null,null,null,null,null,"231/400V, 50A"]
[null,null,null,null,null,null,null,null,null,null,null,null,null,null,null,null,null,null,null,null,null,null,null,null,null,null,null,null,"231/400V, 60A"]
[null,null,null,null,null,null,null,null,null,null,null,null,null,null,null,null,null,null,null,null,null,null,null,null,null,null,null,null,"231/400V, 70A"]
[null,null,null,null,null,null,null,null,null,null,null,null,null,null,null,null,null,null,null,null,null,null,null,null,null,null,null,null,"231/400V, 80A"]
[null,null,null,null,null,null,null,null,null,null,null,null,null,null,null,null,null,null,null,null,null,null,null,null,null,null,null,null,"231/400V, 90A"]
[null,null,null,null,null,null,null,null,null,null,null,null,null,null,null,null,null,null,null,null,null,null,null,null,null,null,null,null,"231/400V, 100A"]
[null,null,null,null,null,null,null,null,null,null,null,null,null,null,null,null,null,null,null,null,null,null,null,null,null,null,null,null,"231/400V, 110A"]
[null,null,null,null,null,null,null,null,null,null,null,null,null,null,null,null,null,null,null,null,null,null,null,null,null,null,null,null,"231/400V, 120A"]
[null,null,null,null,null,null,null,null,null,null,null,null,null,null,null,null,null,null,null,null,null,null,null,null,null,null,null,null,"231/400V, 130A"]
[null,null,null,null,null,null,null,null,null,null,null,null,null,null,null,null,null,null,null,null,null,null,null,null,null,null,null,null,"231/400V, 140A"]
[null,null,null,null,null,null,null,null,null,null,null,null,null,null,null,null,null,null,null,null,null,null,null,null,null,null,null,null,"231/400V, 150A"]
[null,null,null,null,null,null,null,null,null,null,null,null,null,null,null,null,null,null,null,null,null,null,null,null,null,null,null,null,"231/400V, 160A"]
[null,null,null,null,null,null,null,null,null,null,null,null,null,null,null,null,null,null,null,null,null,null,null,null,null,null,null,null,"231/400V, 170A"]
[null,null,null,null,null,null,null,null,null,null,null,null,null,null,null,null,null,null,null,null,null,null,null,null,null,null,null,null,"231/400V, 180A"]
[null,null,null,null,null,null,null,null,null,null,null,null,null,null,null,null,null,null,null,null,null,null,null,null,null,null,null,null,"231/400V, 190A"]
[null,null,null,null,null,null,null,null,null,null,null,null,null,null,null,null,null,null,null,null,null,null,null,null,null,null,null,null,"231/400V, 200A"]
[null,null,null,null,null,null,null,null,null,null,null,null,null,null,null,null,null,null,null,null,null,null,null,null,null,null,null,null,"231/400V, 225A"]
[null,null,null,null,null,null,null,null,null,null,null,null,null,null,null,null,null,null,null,null,null,null,null,null,null,null,null,null,"231/400V, 250A"]
[null,null,null,null,null,null,null,null,null,null,null,null,null,null,null,null,null,null,null,null,null,null,null,null,null,null,null,null,"231/400V, 300A"]
[null,null,null,null,null,null,null,null,null,null,null,null,null,null,null,null,null,null,null,null,null,null,null,null,null,null,null,null,"231/400V, 350A"]
[null,null,null,null,null,null,null,null,null,null,null,null,null,null,null,null,null,null,null,null,null,null,null,null,null,null,null,null,"231/400V, 400A"]
[null,null,null,null,null,null,null,null,null,null,null,null,null,null,null,null,null,null,null,null,null,null,null,null,null,null,null,null,"231/400V, 450A"]
[null,null,null,null,null,null,null,null,null,null,null,null,null,null,null,null,null,null,null,null,null,null,null,null,null,null,null,null,"231/400V, 500A"]
[null,null,null,null,null,null,null,null,null,null,null,null,null,null,null,null,null,null,null,null,null,null,null,null,null,null,null,null,"231/400V, 600A"]
[null,null,null,null,null,null,null,null,null,null,null,null,null,null,null,null,null,null,null,null,null,null,null,null,null,null,null,null,"231/400V, 800A"]
[null,null,null,null,null,null,null,null,null,null,null,null,null,null,null,null,null,null,null,null,null,null,null,null,null,null,null,null,"231/400V, 1000A"]
[null,null,null,null,null,null,null,null,null,null,null,null,null,null,null,null,null,null,null,null,null,null,null,null,null,null,null,null,"231/400V, 1200A"]
[null,null,null,null,null,null,null,null,null,null,null,null,null,null,null,null,null,null,null,null,null,null,null,null,null,null,null,null,"231/400V, 1600A"]
[null,null,null,null,null,null,null,null,null,null,null,null,null,null,null,null,null,null,null,null,null,null,null,null,null,null,null,null,"231/400V, 1800A"]
[null,null,null,null,null,null,null,null,null,null,null,null,null,null,null,null,null,null,null,null,null,null,null,null,null,null,null,null,"231/400V, 2000A"]
[null,null,null,null,null,null,null,null,null,null,null,null,null,null,null,null,null,null,null,null,null,null,null,null,null,null,null,null,"231/400V, 3000A"]
[null,null,null,null,null,null,null,null,null,null,null,null,null,null,null,null,null,null,null,null,null,null,null,null,null,null,null,null,"231/400V, 4000A"]
[null,null,null,null,null,null,null,null,null,null,null,null,null,null,null,null,null,null,null,null,null,null,null,null,null,null,null,null,"231/400V, 5000A"]
[]
[null,null,null,null,null,null,null,null,null,null,null,null,null,null,null,null,null,null,null,null,null,null,null,null,null,null,null,null,"600V:208/120Y, 5kVA"]
[null,null,null,null,null,null,null,null,null,null,null,null,null,null,null,null,null,null,null,null,null,null,null,null,null,null,null,null,"600V:208/120Y, 10kVA"]
[null,null,null,null,null,null,null,null,null,null,null,null,null,null,null,null,null,null,null,null,null,null,null,null,null,null,null,null,"600V:208/120Y, 15kVA"]
[null,null,null,null,null,null,null,null,null,null,null,null,null,null,null,null,null,null,null,null,null,null,null,null,null,null,null,null,"600V:208/120Y, 30kVA"]
[null,null,null,null,null,null,null,null,null,null,null,null,null,null,null,null,null,null,null,null,null,null,null,null,null,null,null,null,"600V:208/120Y, 45kVA"]
[null,null,null,null,null,null,null,null,null,null,null,null,null,null,null,null,null,null,null,null,null,null,null,null,null,null,null,null,"600V:208/120Y, 75kVA"]
[]
[null,null,null,null,null,null,null,null,null,null,null,null,null,null,null,null,null,null,null,null,null,null,null,null,null,null,null,null,"600V:240/120Y, 5kVA"]
[null,null,null,null,null,null,null,null,null,null,null,null,null,null,null,null,null,null,null,null,null,null,null,null,null,null,null,null,"600V:240/120Y, 10kVA"]
[null,null,null,null,null,null,null,null,null,null,null,null,null,null,null,null,null,null,null,null,null,null,null,null,null,null,null,null,"600V:240/120Y, 15kVA"]
[null,null,null,null,null,null,null,null,null,null,null,null,null,null,null,null,null,null,null,null,null,null,null,null,null,null,null,null,"600V:240/120Y, 30kVA"]
[null,null,null,null,null,null,null,null,null,null,null,null,null,null,null,null,null,null,null,null,null,null,null,null,null,null,null,null,"600V:240/120Y, 45kVA"]
[null,null,null,null,null,null,null,null,null,null,null,null,null,null,null,null,null,null,null,null,null,null,null,null,null,null,null,null,"600V:240/120Y, 75kVA"]
[]
[null,null,null,null,null,null,null,null,null,null,null,null,null,null,null,null,null,null,null,null,null,null,null,null,null,null,null,null,"600V:480/277Y, 5kVA"]
[null,null,null,null,null,null,null,null,null,null,null,null,null,null,null,null,null,null,null,null,null,null,null,null,null,null,null,null,"600V:480/277Y, 10kVA"]
[null,null,null,null,null,null,null,null,null,null,null,null,null,null,null,null,null,null,null,null,null,null,null,null,null,null,null,null,"600V:480/277Y, 15kVA"]
[null,null,null,null,null,null,null,null,null,null,null,null,null,null,null,null,null,null,null,null,null,null,null,null,null,null,null,null,"600V:480/277Y, 30kVA"]
[null,null,null,null,null,null,null,null,null,null,null,null,null,null,null,null,null,null,null,null,null,null,null,null,null,null,null,null,"600V:480/277Y, 45kVA"]
[null,null,null,null,null,null,null,null,null,null,null,null,null,null,null,null,null,null,null,null,null,null,null,null,null,null,null,null,"600V:480/277Y, 75kVA"]
[]
[null,null,null,null,null,null,null,null,null,null,null,null,null,null,null,null,null,null,null,null,null,null,null,null,null,null,null,null,"600V:208/120Y, 15kVA"]
[null,null,null,null,null,null,null,null,null,null,null,null,null,null,null,null,null,null,null,null,null,null,null,null,null,null,null,null,"600V:208/120Y, 30kVA"]
[null,null,null,null,null,null,null,null,null,null,null,null,null,null,null,null,null,null,null,null,null,null,null,null,null,null,null,null,"600V:208/120Y, 45kVA"]
[null,null,null,null,null,null,null,null,null,null,null,null,null,null,null,null,null,null,null,null,null,null,null,null,null,null,null,null,"600V:208/120Y, 75kVA"]
[null,null,null,null,null,null,null,null,null,null,null,null,null,null,null,null,null,null,null,null,null,null,null,null,null,null,null,null,"600V:208/120Y, 112.5kVA"]
[null,null,null,null,null,null,null,null,null,null,null,null,null,null,null,null,null,null,null,null,null,null,null,null,null,null,null,null,"600V:208/120Y, 225kVA"]
[null,null,null,null,null,null,null,null,null,null,null,null,null,null,null,null,null,null,null,null,null,null,null,null,null,null,null,null,"600V:208/120Y, 250kVA"]
[null,null,null,null,null,null,null,null,null,null,null,null,null,null,null,null,null,null,null,null,null,null,null,null,null,null,null,null,"600V:208/120Y, 300kVA"]
[null,null,null,null,null,null,null,null,null,null,null,null,null,null,null,null,null,null,null,null,null,null,null,null,null,null,null,null,"600V:208/120Y, 400kVA"]
[null,null,null,null,null,null,null,null,null,null,null,null,null,null,null,null,null,null,null,null,null,null,null,null,null,null,null,null,"600V:208/120Y, 500kVA"]
[null,null,null,null,null,null,null,null,null,null,null,null,null,null,null,null,null,null,null,null,null,null,null,null,null,null,null,null,"600V:208/120Y, 750kVA"]
[]
[null,null,null,null,null,null,null,null,null,null,null,null,null,null,null,null,null,null,null,null,null,null,null,null,null,null,null,null,"600V:240/120Y, 15kVA"]
[null,null,null,null,null,null,null,null,null,null,null,null,null,null,null,null,null,null,null,null,null,null,null,null,null,null,null,null,"600V:240/120Y, 30kVA"]
[null,null,null,null,null,null,null,null,null,null,null,null,null,null,null,null,null,null,null,null,null,null,null,null,null,null,null,null,"600V:240/120Y, 45kVA"]
[null,null,null,null,null,null,null,null,null,null,null,null,null,null,null,null,null,null,null,null,null,null,null,null,null,null,null,null,"600V:240/120Y, 75kVA"]
[null,null,null,null,null,null,null,null,null,null,null,null,null,null,null,null,null,null,null,null,null,null,null,null,null,null,null,null,"600V:240/120Y, 112.5kVA"]
[null,null,null,null,null,null,null,null,null,null,null,null,null,null,null,null,null,null,null,null,null,null,null,null,null,null,null,null,"600V:240/120Y, 225kVA"]
[null,null,null,null,null,null,null,null,null,null,null,null,null,null,null,null,null,null,null,null,null,null,null,null,null,null,null,null,"600V:240/120Y, 250kVA"]
[null,null,null,null,null,null,null,null,null,null,null,null,null,null,null,null,null,null,null,null,null,null,null,null,null,null,null,null,"600V:240/120Y, 300kVA"]
[null,null,null,null,null,null,null,null,null,null,null,null,null,null,null,null,null,null,null,null,null,null,null,null,null,null,null,null,"600V:240/120Y, 400kVA"]
[null,null,null,null,null,null,null,null,null,null,null,null,null,null,null,null,null,null,null,null,null,null,null,null,null,null,null,null,"600V:240/120Y, 500kVA"]
[null,null,null,null,null,null,null,null,null,null,null,null,null,null,null,null,null,null,null,null,null,null,null,null,null,null,null,null,"600V:240/120Y, 750kVA"]
[]
[null,null,null,null,null,null,null,null,null,null,null,null,null,null,null,null,null,null,null,null,null,null,null,null,null,null,null,null,"600V:480/277Y, 15kVA"]
[null,null,null,null,null,null,null,null,null,null,null,null,null,null,null,null,null,null,null,null,null,null,null,null,null,null,null,null,"600V:480/277Y, 30kVA"]
[null,null,null,null,null,null,null,null,null,null,null,null,null,null,null,null,null,null,null,null,null,null,null,null,null,null,null,null,"600V:480/277Y, 45kVA"]
[null,null,null,null,null,null,null,null,null,null,null,null,null,null,null,null,null,null,null,null,null,null,null,null,null,null,null,null,"600V:480/277Y, 75kVA"]
[null,null,null,null,null,null,null,null,null,null,null,null,null,null,null,null,null,null,null,null,null,null,null,null,null,null,null,null,"600V:480/277Y, 112.5kVA"]
[null,null,null,null,null,null,null,null,null,null,null,null,null,null,null,null,null,null,null,null,null,null,null,null,null,null,null,null,"600V:480/277Y, 225kVA"]
[null,null,null,null,null,null,null,null,null,null,null,null,null,null,null,null,null,null,null,null,null,null,null,null,null,null,null,null,"600V:480/277Y, 250kVA"]
[null,null,null,null,null,null,null,null,null,null,null,null,null,null,null,null,null,null,null,null,null,null,null,null,null,null,null,null,"600V:480/277Y, 300kVA"]
[null,null,null,null,null,null,null,null,null,null,null,null,null,null,null,null,null,null,null,null,null,null,null,null,null,null,null,null,"600V:480/277Y, 400kVA"]
[null,null,null,null,null,null,null,null,null,null,null,null,null,null,null,null,null,null,null,null,null,null,null,null,null,null,null,null,"600V:480/277Y, 500kVA"]
[null,null,null,null,null,null,null,null,null,null,null,null,null,null,null,null,null,null,null,null,null,null,null,null,null,null,null,null,"600V:480/277Y, 750kVA"]